Workbook

Sheet Лист1
G1: Утверждаю:
D2: Заведующий МАДОУ д/с № 10
D3: ____________________ Г.Н. Лядова
B5: МЕНЮ-ПЕРЕЧЕНЬ на 08.10.2025
A7: Прием | B7: Блюдо | C7: Диетический | E7: Выход, гр. | G7: Калорийность
A8: пищи | C8: режим | E8: ясли | F8: сад | G8: ясли | H8: сад
A9: Завтрак | B9: Каша ячневая молочная с маслом | C9: Дети | E9: 180 | F9: 200 | G9: 139 | H9: 154
B10: Кофейный напиток с молоком | E10: 150 | F10: 180 | G10: 91 | H10: 101
B11: Бутерброд с маслом и сыром | E11: 20\5\10 | F11: 25\7\12 | G11: 109 | H11: 135
B12: всего | E12: =E9+E10+35 -> 365 | F12: =F9+F10+44 -> 424 | G12: =G9+G10+G11 -> 339 | H12: =H9+H10+H11 -> 390
A13: 2 завтрак
B14: всего | E14: =E13 -> 0 | F14: =F13 -> 0 | G14: 0 | H14: 0
A15: Обед | B15: Суп картофельный с домашней лапшой и птицей | E15: 180 | F15: 200 | G15: 75 | H15: 83
B16: Пюре картофельное | E16: 130 | F16: 150 | G16: 118 | H16: 137
B17: Мясо тушеное | E17: 70 | F17: 80 | G17: 165 | H17: 189
B18: Компот из сухофруктов | E18: 150 | F18: 180 | G18: 101 | H18: 113
B19: Хлеб ржаной | E19: 40 | F19: 50 | G19: 69 | H19: 87
B20: Хлеб пшеничный | E20: 20 | F20: 25 | G20: 48 | H20: 60
B21: всего | E21: =E15+E16+E17+E18+E19+E20 -> 590 | F21: =F15+F16+F17+F18+F19+F20 -> 685 | G21: 576 | H21: 669
A22: Полдник | B22: Яблоко | E22: 200 | F22: 200 | G22: 88 | H22: 88
B24: всего | E24: =E22+E23 -> 200 | F24: =F22+F23 -> 200 | G24: 88 | H24: 88
A25: Ужин | B25: Винегрет овощной | E25: 40 | F25: 60 | G25: 38 | H25: 57
B26: Суфле из минтая | E26: 70 | F26: 80 | G26: 112 | H26: 129
B27: Чай с сахаром и лимоном | E27: 180/5 | F27: 200/5 | G27: 43 | H27: 47
B28: Хлеб пшеничный | E28: 20 | F28: 25 | G28: 48 | H28: 60
B29: всего | E29: =E25+E26+E28+185 -> 315 | F29: =F25+F26+F28+185 -> 350 | G29: =G25+G26+G27+G28 -> 241 | H29: =H25+H26+H27+H28 -> 293
A30: Всего за день кКалл | G30: =G12+G14+G21+G24+G29 -> 1244 | H30: =H12+H14+H21+H24+H29 -> 1440
C32: Составил Сидорова .О.А.________________
